[Event "Late-Titled-Tuesday-Blitz-February-27-2024"]
[Site "Chess.com"]
[Date "2024.02.27"]
[Round "1"]
[White "Sjakkerntobi"]
[Black "Mr_Heisenberg13"]
[Result "0-1"]
[WhiteElo "2467"]
[BlackElo "2839"]
[TimeControl "180+1"]
[EndTime "14:04:22 PST"]
[Termination "Mr_Heisenberg13 won by resignation"]

1. e4 {[%clk 0:03:00.9]} 1... c5 {[%clk 0:02:58.7]} 2. Nf3 {[%clk 0:03:01.1]}
2... e6 {[%clk 0:02:59.2]} 3. d4 {[%clk 0:03:01.5]} 3... cxd4 {[%clk 0:02:59.6]}
4. Nxd4 {[%clk 0:03:02.4]} 4... Nf6 {[%clk 0:02:59.6]} 5. Nc3 {[%clk 0:03:02.8]}
5... Nc6 {[%clk 0:02:59.9]} 6. Ndb5 {[%clk 0:03:02.6]} 6... Bc5 {[%clk
0:02:59.4]} 7. Nd6+ {[%clk 0:03:02.6]} 7... Ke7 {[%clk 0:02:59.4]} 8. Bf4 {[%clk
0:03:03]} 8... e5 {[%clk 0:02:59.8]} 9. Nf5+ {[%clk 0:03:03]} 9... Kf8 {[%clk
0:03:00.4]} 10. Be3 {[%clk 0:03:03.4]} 10... Bb4 {[%clk 0:03:00.4]} 11. a3
{[%clk 0:02:57.7]} 11... Bxc3+ {[%clk 0:02:57.9]} 12. bxc3 {[%clk 0:02:58.6]}
12... d5 {[%clk 0:02:55.2]} 13. exd5 {[%clk 0:02:35.2]} 13... Qxd5 {[%clk
0:02:54.5]} 14. Qxd5 {[%clk 0:02:26.4]} 14... Nxd5 {[%clk 0:02:55.4]} 15. Bc5+
{[%clk 0:02:27]} 15... Kg8 {[%clk 0:02:55.1]} 16. Nd6 {[%clk 0:02:26.6]} 16...
Nxc3 {[%clk 0:02:49.2]} 17. Bd3 {[%clk 0:02:11.6]} 17... b6 {[%clk 0:02:44.8]}
18. Be3 {[%clk 0:02:05.9]} 18... Be6 {[%clk 0:02:42.3]} 19. O-O {[%clk
0:02:04.2]} 19... Rd8 {[%clk 0:02:40.6]} 20. Ne4 {[%clk 0:01:58]} 20... Nd5
{[%clk 0:02:37.2]} 21. Bd2 {[%clk 0:01:52.8]} 21... f6 {[%clk 0:02:36.9]} 22. a4
{[%clk 0:01:50.3]} 22... a5 {[%clk 0:02:32.8]} 23. Rab1 {[%clk 0:01:48.3]} 23...
Ndb4 {[%clk 0:02:32.8]} 24. Be3 {[%clk 0:01:33.4]} 24... Nd4 {[%clk 0:02:20.5]}
25. Rfd1 {[%clk 0:01:10.5]} 25... Kf7 {[%clk 0:02:02]} 26. Kf1 {[%clk
0:01:05.1]} 26... Nxd3 {[%clk 0:02:00.9]} 27. Rxd3 {[%clk 0:01:01.1]} 27... Bc4
{[%clk 0:01:59.2]} 28. Ke1 {[%clk 0:00:55.7]} 28... Nxc2+ {[%clk 0:01:58.4]} 29.
Kd2 {[%clk 0:00:55.5]} 29... Bxd3 {[%clk 0:01:58.9]} 0-1

[Event "Late-Titled-Tuesday-Blitz-February-27-2024"]
[Site "Chess.com"]
[Date "2024.02.27"]
[Round "1"]
[White "Oleksandr_Bortnyk"]
[Black "rdarruda"]
[Result "1-0"]
[WhiteElo "3053"]
[BlackElo "2515"]
[TimeControl "180+1"]
[EndTime "14:04:42 PST"]
[Termination "Oleksandr_Bortnyk won by checkmate"]

1. e4 {[%clk 0:02:53.8]} 1... c5 {[%clk 0:02:59.4]} 2. c3 {[%clk 0:02:51.2]}
2... e6 {[%clk 0:02:58.8]} 3. d4 {[%clk 0:02:51]} 3... cxd4 {[%clk 0:02:57.2]}
4. cxd4 {[%clk 0:02:50.5]} 4... d5 {[%clk 0:02:57.8]} 5. e5 {[%clk 0:02:46.9]}
5... Nc6 {[%clk 0:02:57]} 6. Nc3 {[%clk 0:02:42.4]} 6... Nge7 {[%clk 0:02:56.7]}
7. Nf3 {[%clk 0:02:41.4]} 7... Nf5 {[%clk 0:02:56.3]} 8. Be3 {[%clk 0:02:25.4]}
8... Be7 {[%clk 0:02:55.6]} 9. Bd3 {[%clk 0:02:25.5]} 9... O-O {[%clk
0:02:54.2]} 10. Bxf5 {[%clk 0:02:13.8]} 10... exf5 {[%clk 0:02:53.6]} 11. O-O
{[%clk 0:02:13.9]} 11... Be6 {[%clk 0:02:52.5]} 12. Qd2 {[%clk 0:02:03.3]} 12...
h6 {[%clk 0:02:51.7]} 13. Ne1 {[%clk 0:02:00.3]} 13... g5 {[%clk 0:02:46.5]} 14.
f4 {[%clk 0:01:59.2]} 14... g4 {[%clk 0:02:45.8]} 15. Nd3 {[%clk 0:01:47.9]}
15... b6 {[%clk 0:02:44.5]} 16. Rac1 {[%clk 0:01:42.7]} 16... Qd7 {[%clk
0:02:44.3]} 17. Bf2 {[%clk 0:01:39.5]} 17... Rfc8 {[%clk 0:02:36.9]} 18. Rc2
{[%clk 0:01:36.9]} 18... Nb4 {[%clk 0:02:30.1]} 19. Nxb4 {[%clk 0:01:31.1]}
19... Bxb4 {[%clk 0:02:31]} 20. Bh4 {[%clk 0:01:31]} 20... Be7 {[%clk
0:02:24.6]} 21. Bxe7 {[%clk 0:01:25.7]} 21... Qxe7 {[%clk 0:02:25.5]} 22. Rfc1
{[%clk 0:01:25.8]} 22... Rc4 {[%clk 0:01:58.3]} 23. Nxd5 {[%clk 0:01:23.4]}
23... Bxd5 {[%clk 0:01:55.8]} 24. Rxc4 {[%clk 0:01:24]} 24... Bxc4 {[%clk
0:01:56.1]} 25. Rxc4 {[%clk 0:01:24.8]} 25... Qb7 {[%clk 0:01:45.6]} 26. d5
{[%clk 0:01:24.9]} 26... Qa6 {[%clk 0:01:44.2]} 27. b3 {[%clk 0:01:24.6]} 27...
b5 {[%clk 0:01:42.6]} 28. Rc6 {[%clk 0:01:24]} 28... Qb7 {[%clk 0:01:39.1]} 29.
Qc2 {[%clk 0:01:16.2]} 29... Rd8 {[%clk 0:01:38.2]} 30. Qxf5 {[%clk 0:01:08]}
30... Rxd5 {[%clk 0:01:28.8]} 31. Rc8+ {[%clk 0:01:07]} 31... Kg7 {[%clk
0:01:28.8]} 32. Qf6+ {[%clk 0:01:05.8]} 32... Kh7 {[%clk 0:01:27.6]} 33. Rh8#
{[%clk 0:01:06.7]} 1-0

[Event "Late-Titled-Tuesday-Blitz-February-27-2024"]
[Site "Chess.com"]
[Date "2024.02.27"]
[Round "1"]
[White "BardArtem"]
[Black "chedimir"]
[Result "1-0"]
[WhiteElo "2736"]
[BlackElo "2411"]
[TimeControl "180+1"]
[EndTime "14:04:51 PST"]
[Termination "BardArtem won by resignation"]

1. e4 {[%clk 0:02:59]} 1... c5 {[%clk 0:02:59.3]} 2. Nf3 {[%clk 0:02:58]} 2...
d6 {[%clk 0:02:59.2]} 3. d4 {[%clk 0:02:56.3]} 3... cxd4 {[%clk 0:02:59.1]} 4.
Nxd4 {[%clk 0:02:57.2]} 4... Nf6 {[%clk 0:02:59]} 5. Nc3 {[%clk 0:02:57.1]} 5...
Nc6 {[%clk 0:02:59]} 6. Bg5 {[%clk 0:02:55]} 6... e6 {[%clk 0:02:58.1]} 7. Qd3
{[%clk 0:02:53.9]} 7... a6 {[%clk 0:02:54.7]} 8. O-O-O {[%clk 0:02:51.9]} 8...
h6 {[%clk 0:02:53.2]} 9. Bh4 {[%clk 0:02:45.8]} 9... Ne5 {[%clk 0:02:40.2]} 10.
Qd2 {[%clk 0:02:39.3]} 10... b5 {[%clk 0:02:32.6]} 11. f4 {[%clk 0:02:30.1]}
11... Nc4 {[%clk 0:02:26.1]} 12. Bxc4 {[%clk 0:02:28.4]} 12... bxc4 {[%clk
0:02:25.7]} 13. e5 {[%clk 0:02:22.5]} 13... g5 {[%clk 0:02:17.7]} 14. exf6
{[%clk 0:02:17.3]} 14... gxh4 {[%clk 0:02:16.5]} 15. Rhe1 {[%clk 0:02:01.1]}
15... Rb8 {[%clk 0:02:07.6]} 16. Nc6 {[%clk 0:01:59.3]} 16... Qb6 {[%clk
0:02:05.3]} 17. Nxb8 {[%clk 0:01:58.2]} 17... Qxb8 {[%clk 0:02:05]} 18. Kb1
{[%clk 0:01:56.8]} 18... h5 {[%clk 0:02:03.6]} 19. f5 {[%clk 0:01:56.4]} 19...
e5 {[%clk 0:01:58.7]} 20. Rxe5+ {[%clk 0:01:51.2]} 20... Kd8 {[%clk 0:01:54.5]}
21. Nd5 {[%clk 0:01:15.2]} 21... Bd7 {[%clk 0:01:38.3]} 22. Qa5+ {[%clk
0:01:07.1]} 22... Kc8 {[%clk 0:01:34.9]} 23. Nb6+ {[%clk 0:00:57]} 23... Qxb6
{[%clk 0:01:34.5]} 24. Qxb6 {[%clk 0:00:56.6]} 24... dxe5 {[%clk 0:01:34]} 25.
Qxa6+ {[%clk 0:00:56.9]} 1-0

[Event "Late-Titled-Tuesday-Blitz-February-27-2024"]
[Site "Chess.com"]
[Date "2024.02.27"]
[Round "1"]
[White "xasid81"]
[Black "rikchessmx"]
[Result "1-0"]
[WhiteElo "2581"]
[BlackElo "2216"]
[TimeControl "180+1"]
[EndTime "14:04:51 PST"]
[Termination "xasid81 won by resignation"]

1. e4 {[%clk 0:02:59.7]} 1... e5 {[%clk 0:02:59.7]} 2. Nf3 {[%clk 0:02:59.4]}
2... Nc6 {[%clk 0:02:59.7]} 3. Bb5 {[%clk 0:02:57.9]} 3... a6 {[%clk 0:02:58.8]}
4. Bxc6 {[%clk 0:02:58]} 4... dxc6 {[%clk 0:02:58.6]} 5. d3 {[%clk 0:02:58.8]}
5... f6 {[%clk 0:02:59.2]} 6. Nc3 {[%clk 0:02:57.3]} 6... Bc5 {[%clk 0:02:58.7]}
7. Be3 {[%clk 0:02:55.7]} 7... Qe7 {[%clk 0:02:57.7]} 8. Bxc5 {[%clk 0:02:54.8]}
8... Qxc5 {[%clk 0:02:57.2]} 9. d4 {[%clk 0:02:55.5]} 9... exd4 {[%clk
0:02:56.7]} 10. Qxd4 {[%clk 0:02:56.4]} 10... Qxd4 {[%clk 0:02:56.4]} 11. Nxd4
{[%clk 0:02:57.3]} 11... Bd7 {[%clk 0:02:56.3]} 12. O-O-O {[%clk 0:02:57.3]}
12... O-O-O {[%clk 0:02:55.8]} 13. f3 {[%clk 0:02:57.7]} 13... Ne7 {[%clk
0:02:55.5]} 14. Rhe1 {[%clk 0:02:57.7]} 14... Ng6 {[%clk 0:02:55.5]} 15. Nde2
{[%clk 0:02:56.3]} 15... Nh4 {[%clk 0:02:53]} 16. Rg1 {[%clk 0:02:52.5]} 16...
Be6 {[%clk 0:02:52.7]} 17. Rxd8+ {[%clk 0:02:52.2]} 17... Rxd8 {[%clk
0:02:51.7]} 18. b3 {[%clk 0:02:46.2]} 18... g5 {[%clk 0:02:50]} 19. Nd1 {[%clk
0:02:42.4]} 19... f5 {[%clk 0:02:42.3]} 20. exf5 {[%clk 0:02:40]} 20... Bxf5
{[%clk 0:02:39.9]} 21. Ng3 {[%clk 0:02:38.1]} 21... Bg6 {[%clk 0:02:38.6]} 22.
Ne3 {[%clk 0:02:38.1]} 22... Re8 {[%clk 0:02:38.7]} 23. Kd2 {[%clk 0:02:32.9]}
23... Rd8+ {[%clk 0:02:36.5]} 24. Ke2 {[%clk 0:02:32.1]} 24... Re8 {[%clk
0:02:36.8]} 25. Kf2 {[%clk 0:02:31.8]} 25... h5 {[%clk 0:02:35.3]} 26. Rd1
{[%clk 0:02:28.6]} 26... b5 {[%clk 0:02:30.6]} 27. c4 {[%clk 0:02:26.9]} 27...
a5 {[%clk 0:02:20.2]} 28. Ne2 {[%clk 0:02:25.4]} 28... Nf5 {[%clk 0:02:13.4]}
29. Nxf5 {[%clk 0:02:24.8]} 29... Bxf5 {[%clk 0:02:13.3]} 30. Nd4 {[%clk
0:02:23.1]} 30... Rd8 {[%clk 0:02:08]} 31. c5 {[%clk 0:01:59]} 31... Rd5 {[%clk
0:01:59.3]} 32. Ke3 {[%clk 0:01:57.1]} 32... Bd7 {[%clk 0:01:59.1]} 33. Rc1
{[%clk 0:01:54.3]} 33... Kb7 {[%clk 0:01:57.1]} 34. a3 {[%clk 0:01:51.8]} 34...
Ka6 {[%clk 0:01:56.8]} 35. b4 {[%clk 0:01:51.8]} 35... a4 {[%clk 0:01:55.1]} 36.
g3 {[%clk 0:01:50.1]} 36... Re5+ {[%clk 0:01:54.9]} 37. Kf2 {[%clk 0:01:49.9]}
37... Rd5 {[%clk 0:01:53.7]} 38. Rd1 {[%clk 0:01:49]} 38... Bf5 {[%clk
0:01:45.6]} 39. Rd2 {[%clk 0:01:48.1]} 39... g4 {[%clk 0:01:42.6]} 40. f4 {[%clk
0:01:45.8]} 40... Be4 {[%clk 0:01:41.7]} 41. Ke3 {[%clk 0:01:44.5]} 41... Bf3
{[%clk 0:01:41.1]} 42. Nxf3 {[%clk 0:01:41.4]} 42... gxf3 {[%clk 0:01:38]} 43.
Rxd5 {[%clk 0:01:39.9]} 43... cxd5 {[%clk 0:01:38.3]} 44. f5 {[%clk 0:01:39.2]}
44... d4+ {[%clk 0:01:37.2]} 45. Kxf3 {[%clk 0:01:38.9]} 45... Kb7 {[%clk
0:01:37.5]} 46. f6 {[%clk 0:01:38.8]} 46... Kc6 {[%clk 0:01:38.4]} 47. f7 {[%clk
0:01:38.7]} 47... Kd5 {[%clk 0:01:39.3]} 48. f8=Q {[%clk 0:01:38.8]} 48... Kc4
{[%clk 0:01:40.2]} 49. Qf7+ {[%clk 0:01:38.2]} 49... Kc3 {[%clk 0:01:39.3]} 50.
Qxc7 {[%clk 0:01:38.8]} 50... d3 {[%clk 0:01:38.9]} 51. Qd6 {[%clk 0:01:38.8]}
51... Kc2 {[%clk 0:01:37.8]} 52. Ke3 {[%clk 0:01:38.9]} 1-0

[Event "Late-Titled-Tuesday-Blitz-February-27-2024"]
[Site "Chess.com"]
[Date "2024.02.27"]
[Round "1"]
[White "yuriydovzik"]
[Black "Casper"]
[Result "0-1"]
[WhiteElo "2116"]
[BlackElo "2543"]
[TimeControl "180+1"]
[EndTime "14:05:06 PST"]
[Termination "Casper won on time"]

1. Nf3 {[%clk 0:02:56.9]} 1... Na6 {[%clk 0:02:58.4]} 2. e4 {[%clk 0:02:53.9]}
2... Nc5 {[%clk 0:02:56.8]} 3. Nc3 {[%clk 0:02:47.9]} 3... g6 {[%clk 0:02:51]}
4. d4 {[%clk 0:02:45.7]} 4... Ne6 {[%clk 0:02:51.3]} 5. Be3 {[%clk 0:02:37.1]}
5... Bh6 {[%clk 0:02:43.5]} 6. Bxh6 {[%clk 0:02:33]} 6... Nxh6 {[%clk
0:02:44.4]} 7. Qd2 {[%clk 0:02:32.4]} 7... Ng4 {[%clk 0:02:41.4]} 8. h3 {[%clk
0:02:29.1]} 8... Nf6 {[%clk 0:02:41.3]} 9. e5 {[%clk 0:02:26.5]} 9... Ng8 {[%clk
0:02:39.8]} 10. d5 {[%clk 0:02:16.9]} 10... Ng7 {[%clk 0:02:38.4]} 11. O-O-O
{[%clk 0:02:10.4]} 11... a6 {[%clk 0:02:38.6]} 12. g4 {[%clk 0:02:08]} 12... h5
{[%clk 0:02:36.4]} 13. Bg2 {[%clk 0:01:55.4]} 13... d6 {[%clk 0:02:35.3]} 14.
Qf4 {[%clk 0:01:34.7]} 14... Nh6 {[%clk 0:02:27.9]} 15. e6 {[%clk 0:01:18.3]}
15... fxe6 {[%clk 0:02:24]} 16. Qg5 {[%clk 0:01:17.4]} 16... e5 {[%clk
0:02:10.5]} 17. Qxg6+ {[%clk 0:01:13.4]} 17... Kf8 {[%clk 0:02:11.1]} 18. Nh4
{[%clk 0:01:01.4]} 18... e6 {[%clk 0:02:08.1]} 19. g5 {[%clk 0:00:35.3]} 19...
Nf7 {[%clk 0:02:02.6]} 20. f4 {[%clk 0:00:21.4]} 20... exf4 {[%clk 0:01:58.5]}
21. dxe6 {[%clk 0:00:17.1]} 21... Nxe6 {[%clk 0:01:56.6]} 22. Ne4 {[%clk
0:00:08.7]} 22... Nexg5 {[%clk 0:01:52.8]} 0-1

[Event "Late-Titled-Tuesday-Blitz-February-27-2024"]
[Site "Chess.com"]
[Date "2024.02.27"]
[Round "1"]
[White "xakevicius91"]
[Black "2L8IWUN"]
[Result "1-0"]
[WhiteElo "2561"]
[BlackElo "2155"]
[TimeControl "180+1"]
[EndTime "14:05:08 PST"]
[Termination "xakevicius91 won by resignation"]

1. e4 {[%clk 0:03:00.9]} 1... e5 {[%clk 0:02:00.1]} 2. Nf3 {[%clk 0:02:58.7]}
2... Nc6 {[%clk 0:01:59.5]} 3. d4 {[%clk 0:02:59.1]} 3... exd4 {[%clk
0:01:59.4]} 4. Nxd4 {[%clk 0:03:00]} 4... Nf6 {[%clk 0:01:59.2]} 5. Nxc6 {[%clk
0:02:59.4]} 5... bxc6 {[%clk 0:02:00.1]} 6. Qe2 {[%clk 0:02:59.9]} 6... Be7
{[%clk 0:01:46]} 7. e5 {[%clk 0:02:58.6]} 7... Nd5 {[%clk 0:01:40.6]} 8. Qg4
{[%clk 0:02:54.9]} 8... g6 {[%clk 0:01:29]} 9. Qg3 {[%clk 0:02:53.5]} 9... d6
{[%clk 0:01:18.2]} 10. c4 {[%clk 0:02:44.7]} 10... Nb6 {[%clk 0:01:17.8]} 11.
Nc3 {[%clk 0:02:44]} 11... Be6 {[%clk 0:01:13.1]} 12. Qf3 {[%clk 0:02:30.6]}
12... Qd7 {[%clk 0:01:07.8]} 13. c5 {[%clk 0:02:25.4]} 13... Nd5 {[%clk
0:01:02.5]} 14. Be2 {[%clk 0:02:18.4]} 14... O-O {[%clk 0:00:34]} 15. exd6
{[%clk 0:02:15.9]} 15... cxd6 {[%clk 0:00:33.6]} 16. cxd6 {[%clk 0:02:16]} 16...
Bxd6 {[%clk 0:00:34.5]} 17. O-O {[%clk 0:02:15.7]} 17... Rfe8 {[%clk 0:00:24.8]}
18. h3 {[%clk 0:02:14]} 18... Rab8 {[%clk 0:00:23.3]} 19. Ne4 {[%clk 0:02:09.2]}
19... Be7 {[%clk 0:00:22.1]} 20. Bf4 {[%clk 0:02:02.5]} 20... Rxb2 {[%clk
0:00:17.4]} 21. Be5 {[%clk 0:02:00.1]} 21... f5 {[%clk 0:00:14.5]} 22. Bxb2
{[%clk 0:01:57.4]} 22... fxe4 {[%clk 0:00:14]} 23. Qxe4 {[%clk 0:01:56.8]} 23...
Bf5 {[%clk 0:00:14.1]} 24. Qc4 {[%clk 0:01:52.9]} 24... Bg5 {[%clk 0:00:09.8]}
25. Bf3 {[%clk 0:01:49.6]} 1-0

[Event "Late-Titled-Tuesday-Blitz-February-27-2024"]
[Site "Chess.com"]
[Date "2024.02.27"]
[Round "1"]
[White "EcosseKillie"]
[Black "DishonorOnYourCow"]
[Result "1/2-1/2"]
[WhiteElo "2256"]
[BlackElo "2593"]
[TimeControl "180+1"]
[EndTime "14:05:15 PST"]
[Termination "Game drawn by repetition"]

1. d4 {[%clk 0:03:00.9]} 1... Nf6 {[%clk 0:02:59.8]} 2. Bg5 {[%clk 0:03:00.8]}
2... Ne4 {[%clk 0:02:59.6]} 3. Bf4 {[%clk 0:03:01.1]} 3... d5 {[%clk 0:03:00]}
4. e3 {[%clk 0:03:00.6]} 4... g6 {[%clk 0:03:00.4]} 5. Bd3 {[%clk 0:03:00.1]}
5... Bg7 {[%clk 0:03:00.5]} 6. Bxe4 {[%clk 0:02:57.6]} 6... dxe4 {[%clk
0:03:01.4]} 7. Nd2 {[%clk 0:02:57.8]} 7... c5 {[%clk 0:02:59.4]} 8. c3 {[%clk
0:02:55.5]} 8... cxd4 {[%clk 0:02:57.8]} 9. cxd4 {[%clk 0:02:55]} 9... f5 {[%clk
0:02:52.9]} 10. Qb3 {[%clk 0:02:52.7]} 10... Qb6 {[%clk 0:02:45.2]} 11. Qxb6
{[%clk 0:02:48.6]} 11... axb6 {[%clk 0:02:46.1]} 12. Ne2 {[%clk 0:02:46.5]}
12... Be6 {[%clk 0:02:40.4]} 13. a3 {[%clk 0:02:45.8]} 13... Nc6 {[%clk
0:02:37.7]} 14. Nc3 {[%clk 0:02:44.4]} 14... Bf7 {[%clk 0:02:33.9]} 15. O-O
{[%clk 0:02:44.1]} 15... e5 {[%clk 0:02:32.2]} 16. dxe5 {[%clk 0:02:42.7]} 16...
Nxe5 {[%clk 0:02:32.2]} 17. Nb5 {[%clk 0:02:39.8]} 17... O-O {[%clk 0:02:31.5]}
18. Rac1 {[%clk 0:02:31.9]} 18... Nd3 {[%clk 0:02:30]} 19. Rc7 {[%clk
0:02:31.5]} 19... Nxf4 {[%clk 0:02:14.9]} 20. exf4 {[%clk 0:02:31.4]} 20... Bxb2
{[%clk 0:02:13.5]} 21. Rb1 {[%clk 0:02:21.8]} 21... Bxa3 {[%clk 0:02:00.4]} 22.
Nxa3 {[%clk 0:02:12.4]} 22... Rxa3 {[%clk 0:02:01.3]} 23. Rxb6 {[%clk
0:02:12.5]} 23... Ra1+ {[%clk 0:01:58.4]} 24. Nf1 {[%clk 0:02:08.8]} 24... Rd8
{[%clk 0:01:49.7]} 25. Rbxb7 {[%clk 0:02:00.4]} 25... Rdd1 {[%clk 0:01:49.4]}
26. g3 {[%clk 0:02:01.1]} 26... Rxf1+ {[%clk 0:01:49.5]} 27. Kg2 {[%clk
0:02:01.8]} 27... Be8 {[%clk 0:01:26]} 28. Rg7+ {[%clk 0:01:59.1]} 28... Kf8
{[%clk 0:01:26.1]} 29. Rxh7 {[%clk 0:01:59.8]} 29... Rg1+ {[%clk 0:01:20.2]} 30.
Kh3 {[%clk 0:01:58.4]} 30... Kg8 {[%clk 0:00:59.1]} 31. Rhg7+ {[%clk 0:01:57.4]}
31... Kh8 {[%clk 0:00:51.5]} 32. Rh7+ {[%clk 0:01:58.3]} 32... Kg8 {[%clk
0:00:50.6]} 33. Rhg7+ {[%clk 0:01:55.8]} 33... Kf8 {[%clk 0:00:49.9]} 34. Rh7
{[%clk 0:01:56.7]} 34... Kg8 {[%clk 0:00:19.7]} 1/2-1/2

[Event "Late-Titled-Tuesday-Blitz-February-27-2024"]
[Site "Chess.com"]
[Date "2024.02.27"]
[Round "1"]
[White "Mikhail_Golubev"]
[Black "rhwr"]
[Result "1-0"]
[WhiteElo "2629"]
[BlackElo "2320"]
[TimeControl "180+1"]
[EndTime "14:05:23 PST"]
[Termination "Mikhail_Golubev won by resignation"]

1. e4 {[%clk 0:02:58.9]} 1... c5 {[%clk 0:02:59.5]} 2. Nf3 {[%clk 0:02:58.2]}
2... d6 {[%clk 0:03:00.1]} 3. d4 {[%clk 0:02:58.2]} 3... cxd4 {[%clk 0:03:00.7]}
4. Nxd4 {[%clk 0:02:58.6]} 4... Nf6 {[%clk 0:03:01]} 5. Nc3 {[%clk 0:02:59.2]}
5... a6 {[%clk 0:03:01.3]} 6. Bc4 {[%clk 0:02:59]} 6... e6 {[%clk 0:03:01.2]} 7.
O-O {[%clk 0:02:57.5]} 7... Be7 {[%clk 0:03:01]} 8. Bb3 {[%clk 0:02:56.9]} 8...
Qc7 {[%clk 0:03:00.5]} 9. f4 {[%clk 0:02:53.9]} 9... b5 {[%clk 0:02:59.5]} 10.
f5 {[%clk 0:02:40.5]} 10... e5 {[%clk 0:02:43.1]} 11. Nde2 {[%clk 0:02:21.9]}
11... Bb7 {[%clk 0:02:41.9]} 12. Bg5 {[%clk 0:02:09.4]} 12... Nbd7 {[%clk
0:02:39.8]} 13. Bxf6 {[%clk 0:01:50]} 13... Nxf6 {[%clk 0:02:39.3]} 14. Kh1
{[%clk 0:01:31.7]} 14... O-O {[%clk 0:02:34.3]} 15. Ng3 {[%clk 0:01:17.2]} 15...
b4 {[%clk 0:02:26.8]} 16. Nd5 {[%clk 0:01:16.1]} 16... Bxd5 {[%clk 0:02:25.4]}
17. Bxd5 {[%clk 0:01:15.3]} 17... Nxd5 {[%clk 0:02:24.1]} 18. exd5 {[%clk
0:01:09.1]} 18... Rac8 {[%clk 0:02:13.9]} 19. Qg4 {[%clk 0:00:41.1]} 19... Qc4
{[%clk 0:02:10.6]} 20. Ne4 {[%clk 0:00:39.5]} 20... h5 {[%clk 0:02:09.5]} 21.
Qf3 {[%clk 0:00:34.5]} 21... g6 {[%clk 0:01:57.3]} 22. f6 {[%clk 0:00:31.6]}
22... Bxf6 {[%clk 0:01:30.5]} 23. Nxf6+ {[%clk 0:00:28.7]} 23... Kg7 {[%clk
0:01:28.6]} 24. Nd7 {[%clk 0:00:28.5]} 24... f5 {[%clk 0:01:20.9]} 25. Nxf8
{[%clk 0:00:28.5]} 1-0

[Event "Late-Titled-Tuesday-Blitz-February-27-2024"]
[Site "Chess.com"]
[Date "2024.02.27"]
[Round "1"]
[White "Narek_Ghimoyan"]
[Black "secretworker2027"]
[Result "1-0"]
[WhiteElo "2387"]
[BlackElo "2647"]
[TimeControl "180+1"]
[EndTime "14:05:31 PST"]
[Termination "Narek_Ghimoyan won by resignation"]

1. d4 {[%clk 0:03:00.9]} 1... Nf6 {[%clk 0:02:59.6]} 2. c4 {[%clk 0:03:00.6]}
2... c5 {[%clk 0:02:59.3]} 3. Nf3 {[%clk 0:02:59.5]} 3... cxd4 {[%clk
0:02:56.4]} 4. Nxd4 {[%clk 0:03:00.4]} 4... e5 {[%clk 0:02:56.2]} 5. Nb5 {[%clk
0:02:59.2]} 5... d5 {[%clk 0:02:56.1]} 6. cxd5 {[%clk 0:02:59.2]} 6... Bc5
{[%clk 0:02:56.4]} 7. e3 {[%clk 0:02:55.4]} 7... O-O {[%clk 0:02:53.4]} 8. N5c3
{[%clk 0:02:55.3]} 8... a6 {[%clk 0:02:47.1]} 9. a4 {[%clk 0:02:51.3]} 9... Nbd7
{[%clk 0:02:43.4]} 10. Na3 {[%clk 0:02:49.2]} 10... Nb6 {[%clk 0:02:42.9]} 11.
Nc4 {[%clk 0:02:48.1]} 11... Nbxd5 {[%clk 0:02:41.7]} 12. Nxd5 {[%clk
0:02:47.6]} 12... Nxd5 {[%clk 0:02:41]} 13. Bd3 {[%clk 0:02:30.8]} 13... Nb4
{[%clk 0:02:37.5]} 14. Bb1 {[%clk 0:02:29]} 14... Qxd1+ {[%clk 0:02:36]} 15.
Kxd1 {[%clk 0:02:29.9]} 15... f6 {[%clk 0:02:33.6]} 16. Bd2 {[%clk 0:02:28.2]}
16... Be6 {[%clk 0:02:32.7]} 17. Na5 {[%clk 0:02:24.5]} 17... b6 {[%clk
0:02:24.6]} 18. Bxb4 {[%clk 0:02:15.6]} 18... Bxb4 {[%clk 0:02:22.4]} 19. Nc6
{[%clk 0:02:14.2]} 19... Bd6 {[%clk 0:02:09.3]} 20. Ke2 {[%clk 0:01:32.6]} 20...
Rac8 {[%clk 0:02:04.8]} 21. Rc1 {[%clk 0:01:32.3]} 21... Bd5 {[%clk 0:02:04.3]}
22. Ba2 {[%clk 0:01:28.2]} 22... Bxa2 {[%clk 0:02:00.1]} 23. Rxa2 {[%clk
0:01:29.1]} 23... Bc5 {[%clk 0:02:00.4]} 24. Rxc5 {[%clk 0:01:25.4]} 24... bxc5
{[%clk 0:02:00]} 25. Ne7+ {[%clk 0:01:26.3]} 25... Kf7 {[%clk 0:01:59.7]} 26.
Nxc8 {[%clk 0:01:27.2]} 26... Rxc8 {[%clk 0:02:00.3]} 27. Kd3 {[%clk 0:01:25.7]}
27... Rd8+ {[%clk 0:01:56.4]} 28. Kc3 {[%clk 0:01:24]} 28... Ke6 {[%clk
0:01:56]} 29. b3 {[%clk 0:01:23.1]} 29... Rd1 {[%clk 0:01:54.7]} 30. Rc2 {[%clk
0:01:21.5]} 30... Kd5 {[%clk 0:01:53.7]} 31. Rd2+ {[%clk 0:01:17.6]} 31... Rxd2
{[%clk 0:01:53.4]} 32. Kxd2 {[%clk 0:01:18.5]} 32... c4 {[%clk 0:01:53.5]} 33.
b4 {[%clk 0:01:17.2]} 33... f5 {[%clk 0:01:47.3]} 34. Kc3 {[%clk 0:01:15]} 34...
g5 {[%clk 0:01:47.7]} 35. f3 {[%clk 0:01:02.7]} 35... h5 {[%clk 0:01:47.1]} 36.
g3 {[%clk 0:00:37.9]} 36... g4 {[%clk 0:01:44.4]} 37. f4 {[%clk 0:00:36.2]}
37... e4 {[%clk 0:01:40.2]} 38. a5 {[%clk 0:00:33.7]} 38... Kd6 {[%clk
0:01:38.7]} 39. Kxc4 {[%clk 0:00:33.1]} 39... Kc6 {[%clk 0:01:39.6]} 40. b5+
{[%clk 0:00:31.8]} 40... axb5+ {[%clk 0:01:39.6]} 41. Kb4 {[%clk 0:00:32.7]}
41... Kb7 {[%clk 0:01:39.8]} 42. Kxb5 {[%clk 0:00:33]} 1-0

[Event "Late-Titled-Tuesday-Blitz-February-27-2024"]
[Site "Chess.com"]
[Date "2024.02.27"]
[Round "1"]
[White "Polish_fighter3000"]
[Black "Caracal3000"]
[Result "1-0"]
[WhiteElo "3087"]
[BlackElo "2522"]
[TimeControl "180+1"]
[EndTime "14:05:32 PST"]
[Termination "Polish_fighter3000 won by resignation"]

1. b4 {[%clk 0:02:59.5]} 1... e5 {[%clk 0:02:57.5]} 2. Bb2 {[%clk 0:02:58.8]}
2... d6 {[%clk 0:02:57.4]} 3. c4 {[%clk 0:02:57.5]} 3... g6 {[%clk 0:02:56.4]}
4. d4 {[%clk 0:02:56.8]} 4... Bg7 {[%clk 0:02:54.2]} 5. e3 {[%clk 0:02:54.5]}
5... exd4 {[%clk 0:02:52.8]} 6. Bxd4 {[%clk 0:02:50.4]} 6... Bxd4 {[%clk
0:02:52.5]} 7. Qxd4 {[%clk 0:02:50.8]} 7... Qf6 {[%clk 0:02:52.7]} 8. Nf3 {[%clk
0:02:49.2]} 8... c5 {[%clk 0:02:41.1]} 9. bxc5 {[%clk 0:02:22.6]} 9... dxc5
{[%clk 0:02:40.9]} 10. Qxc5 {[%clk 0:02:21.5]} 10... Nc6 {[%clk 0:02:24.1]} 11.
Nd4 {[%clk 0:02:20.9]} 11... Bd7 {[%clk 0:02:02.8]} 12. Nc3 {[%clk 0:02:18.1]}
12... b6 {[%clk 0:01:41.7]} 13. Qd5 {[%clk 0:02:17.6]} 13... Nge7 {[%clk
0:01:41.3]} 14. Qe4 {[%clk 0:02:16]} 14... O-O {[%clk 0:01:38.4]} 15. Rd1 {[%clk
0:02:11.1]} 15... Rfe8 {[%clk 0:01:31.7]} 16. Be2 {[%clk 0:02:05.1]} 16... Nf5
{[%clk 0:01:13.1]} 17. Qf3 {[%clk 0:02:04.9]} 17... Ne5 {[%clk 0:01:10]} 18. Qf4
{[%clk 0:01:53.1]} 18... g5 {[%clk 0:01:04.7]} 19. Ne4 {[%clk 0:01:37.9]} 19...
Qg6 {[%clk 0:00:14]} 20. Qxg5 {[%clk 0:01:35.6]} 20... Nxd4 {[%clk 0:00:14.6]}
21. Nf6+ {[%clk 0:01:28.4]} 21... Kh8 {[%clk 0:00:14.9]} 22. Qxg6 {[%clk
0:01:28.3]} 22... fxg6 {[%clk 0:00:06.3]} 23. exd4 {[%clk 0:01:27.6]} 23... Re6
{[%clk 0:00:02.1]} 24. dxe5 {[%clk 0:01:27.6]} 1-0